[Event "Titled Tuesday Blitz February 01 A 2022"]
[White "Nakamura, Hikaru"]
[Black "Le, Tuan Minh"]
[WhiteFideId "2016192"]
[BlackFideId "12401153"]
[WhiteElo "2850"]
[BlackElo "2450"]
[Result "1-0"]
[Round "10"]
[TimeControl "180+1"]
[Date "2022.02.01"]
[WhiteClock "0:00:20"]
[BlackClock "0:00:02"]

1. e4 {[%clk 0:03:00]}  c5 {[%clk 0:02:56]} 2. Nf3 {[%clk 0:03:00]}  Nf6 {[%clk 0:02:56]} 3. e5 {[%clk 0:03:00]}  Nd5 {[%clk 0:02:56]} 4. Nc3 {[%clk 0:03:01]}  e6 {[%clk 0:02:57]} 5. Nxd5 {[%clk 0:03:02]}  exd5 {[%clk 0:02:58]} 6. d4 {[%clk 0:03:02]}  Nc6 {[%clk 0:02:59]} 7. dxc5 {[%clk 0:03:01]}  Bxc5 {[%clk 0:03:00]} 8. Qxd5 {[%clk 0:03:02]}  d6 {[%clk 0:03:00]} 9. exd6 {[%clk 0:02:48]}  Qb6 {[%clk 0:03:00]} 10. Be3 {[%clk 0:02:10]}  Bxe3 {[%clk 0:01:56]} 11. fxe3 {[%clk 0:01:51]}  Be6 {[%clk 0:01:18]} 12. d7+ {[%clk 0:01:37]}  Bxd7 {[%clk 0:01:16]} 13. Qe4+ {[%clk 0:01:27]}  Be6 {[%clk 0:00:37]} 14. O-O-O {[%clk 0:01:27]}  Qc5 {[%clk 0:00:19]} 15. Nd4 {[%clk 0:01:19]}  O-O {[%clk 0:00:19]} 16. Bd3 {[%clk 0:01:14]}  g6 {[%clk 0:00:17]} 17. Nxe6 {[%clk 0:01:14]}  fxe6 {[%clk 0:00:17]} 18. Qxe6+ {[%clk 0:01:15]}  Kg7 {[%clk 0:00:18]} 19. Rhf1 {[%clk 0:01:12]}  Rae8 {[%clk 0:00:18]} 20. Qb3 {[%clk 0:00:30]}  Qxe3+ {[%clk 0:00:16]} 21. Kb1 {[%clk 0:00:30]}  Rxf1 {[%clk 0:00:17]} 22. Bxf1 {[%clk 0:00:31]}  Qd2 {[%clk 0:00:11]} 23. Qd3 {[%clk 0:00:24]}  Qxd3 {[%clk 0:00:06]} 24. Bxd3 {[%clk 0:00:25]}  Re7 {[%clk 0:00:06]} 25. a3 {[%clk 0:00:24]}  Ne5 {[%clk 0:00:06]} 26. Be2 {[%clk 0:00:24]}  h5 {[%clk 0:00:06]} 27. h3 {[%clk 0:00:23]}  b6 {[%clk 0:00:06]} 28. b4 {[%clk 0:00:23]}  h4 {[%clk 0:00:06]} 29. c4 {[%clk 0:00:22]}  Kh6 {[%clk 0:00:06]} 30. Kc2 {[%clk 0:00:21]}  Kg5 {[%clk 0:00:06]} 31. Rd4 {[%clk 0:00:21]}  Nc6 {[%clk 0:00:07]} 32. Rg4+ {[%clk 0:00:21]}  Kf6 {[%clk 0:00:07]} 33. Bd3 {[%clk 0:00:20]}  g5 {[%clk 0:00:06]} 34. Re4 {[%clk 0:00:20]}  Rd7 {[%clk 0:00:03]} 35. Kc3 {[%clk 0:00:20]}  Ne5 {[%clk 0:00:03]} 36. Bc2 {[%clk 0:00:20]}  Ng6 {[%clk 0:00:03]} 37. Rd4 {[%clk 0:00:20]}  Re7 {[%clk 0:00:02]} 38. Rd6+ {[%clk 0:00:20]} 1-0


[Site "https://www.chess.com"]

[Event "Titled Tuesday Blitz February 01 A 2022"]
[White "Nesterov, Arseniy"]
[Black "Bacrot, Etienne"]
[WhiteFideId "24198455"]
[BlackFideId "605506"]
[WhiteElo "2489"]
[BlackElo "2673"]
[Result "1-0"]
[Round "10"]
[TimeControl "180+1"]
[Date "2022.02.01"]
[WhiteClock "0:01:14"]
[BlackClock "0:01:07"]

1. d4 {[%clk 0:03:00]}  Nf6 {[%clk 0:02:59]} 2. c4 {[%clk 0:03:00]}  c5 {[%clk 0:02:59]} 3. d5 {[%clk 0:03:00]}  b5 {[%clk 0:02:59]} 4. Qc2 {[%clk 0:02:59]}  bxc4 {[%clk 0:02:58]} 5. e4 {[%clk 0:02:59]}  e6 {[%clk 0:02:57]} 6. Nc3 {[%clk 0:02:59]}  exd5 {[%clk 0:02:56]} 7. e5 {[%clk 0:02:59]}  d4 {[%clk 0:02:50]} 8. exf6 {[%clk 0:02:59]}  Qxf6 {[%clk 0:02:47]} 9. Nd5 {[%clk 0:02:03]}  Qe6+ {[%clk 0:02:36]} 10. Qe2 {[%clk 0:02:03]}  Bd6 {[%clk 0:02:13]} 11. Bf4 {[%clk 0:01:58]}  Bxf4 {[%clk 0:01:56]} 12. Nxf4 {[%clk 0:01:59]}  Qxe2+ {[%clk 0:01:56]} 13. Bxe2 {[%clk 0:01:57]}  Ba6 {[%clk 0:01:55]} 14. Rc1 {[%clk 0:01:40]}  d3 {[%clk 0:01:30]} 15. f3 {[%clk 0:01:39]}  dxe2 {[%clk 0:01:25]} 16. Ngxe2 {[%clk 0:01:39]}  Nc6 {[%clk 0:01:23]} 17. Nd5 {[%clk 0:01:38]}  O-O-O {[%clk 0:01:22]} 18. Kf2 {[%clk 0:01:35]}  Rhe8 {[%clk 0:01:22]} 19. Nec3 {[%clk 0:01:33]}  Nb4 {[%clk 0:01:20]} 20. Nxb4 {[%clk 0:01:31]}  cxb4 {[%clk 0:01:18]} 21. Nd5 {[%clk 0:01:32]}  Kb7 {[%clk 0:01:17]} 22. Nxb4 {[%clk 0:01:32]}  d5 {[%clk 0:01:16]} 23. Rhd1 {[%clk 0:01:31]}  c3 {[%clk 0:01:08]} 24. Nxa6 {[%clk 0:01:17]}  cxb2 {[%clk 0:01:07]} 25. Nc5+ {[%clk 0:01:16]}  Kc6 {[%clk 0:01:07]} 26. Rc2 {[%clk 0:01:14]} 1-0


[Site "https://www.chess.com"]

[Event "Titled Tuesday Blitz February 01 A 2022"]
[White "Pakleza, Zbigniew"]
[Black "Vantika, Agrawal"]
[WhiteFideId "1119290"]
[BlackFideId "25050389"]
[WhiteElo "2467"]
[BlackElo "2075"]
[Result "1-0"]
[Round "10"]
[TimeControl "180+1"]
[Date "2022.02.01"]
[WhiteClock "0:00:05"]
[BlackClock "0:00:01"]

1. d4 {[%clk 0:03:00]}  Nf6 {[%clk 0:02:57]} 2. Nf3 {[%clk 0:03:00]}  d5 {[%clk 0:02:55]} 3. Bf4 {[%clk 0:03:00]}  c5 {[%clk 0:02:54]} 4. c3 {[%clk 0:03:00]}  Nc6 {[%clk 0:02:50]} 5. Nbd2 {[%clk 0:03:00]}  Nh5 {[%clk 0:02:44]} 6. Be5 {[%clk 0:02:50]}  f6 {[%clk 0:02:37]} 7. Bg3 {[%clk 0:02:50]}  cxd4 {[%clk 0:02:37]} 8. cxd4 {[%clk 0:02:48]}  Qb6 {[%clk 0:02:32]} 9. Qb3 {[%clk 0:02:45]}  Nxg3 {[%clk 0:02:16]} 10. hxg3 {[%clk 0:02:40]}  e6 {[%clk 0:02:05]} 11. e3 {[%clk 0:02:35]}  Bd7 {[%clk 0:02:04]} 12. Bd3 {[%clk 0:02:30]}  Qxb3 {[%clk 0:01:51]} 13. Nxb3 {[%clk 0:02:28]}  h6 {[%clk 0:01:44]} 14. a3 {[%clk 0:02:14]}  O-O-O {[%clk 0:01:41]} 15. Ke2 {[%clk 0:02:08]}  Kb8 {[%clk 0:01:37]} 16. Rhc1 {[%clk 0:01:56]}  Bd6 {[%clk 0:01:26]} 17. Nc5 {[%clk 0:01:53]}  e5 {[%clk 0:01:23]} 18. Nxd7+ {[%clk 0:01:32]}  Rxd7 {[%clk 0:01:22]} 19. Bb5 {[%clk 0:01:28]}  Rc7 {[%clk 0:01:15]} 20. Rc3 {[%clk 0:01:02]}  Ne7 {[%clk 0:00:58]} 21. Rxc7 {[%clk 0:00:56]}  Bxc7 {[%clk 0:00:58]} 22. Rc1 {[%clk 0:00:53]}  a6 {[%clk 0:00:58]} 23. Ba4 {[%clk 0:00:53]}  h5 {[%clk 0:00:48]} 24. Bb3 {[%clk 0:00:50]}  Rd8 {[%clk 0:00:32]} 25. Rh1 {[%clk 0:00:47]}  g6 {[%clk 0:00:30]} 26. Rd1 {[%clk 0:00:44]}  Nf5 {[%clk 0:00:27]} 27. dxe5 {[%clk 0:00:42]}  fxe5 {[%clk 0:00:25]} 28. Bxd5 {[%clk 0:00:36]}  Ne7 {[%clk 0:00:10]} 29. Be4 {[%clk 0:00:34]}  Rxd1 {[%clk 0:00:10]} 30. Kxd1 {[%clk 0:00:35]}  Bd6 {[%clk 0:00:08]} 31. Ng5 {[%clk 0:00:26]}  Kc7 {[%clk 0:00:07]} 32. Nf7 {[%clk 0:00:27]}  b5 {[%clk 0:00:06]} 33. Nh8 {[%clk 0:00:22]}  g5 {[%clk 0:00:06]} 34. Nf7 {[%clk 0:00:23]}  g4 {[%clk 0:00:05]} 35. Kc2 {[%clk 0:00:17]}  a5 {[%clk 0:00:05]} 36. Nxd6 {[%clk 0:00:13]}  Kxd6 {[%clk 0:00:05]} 37. b4 {[%clk 0:00:14]}  axb4 {[%clk 0:00:04]} 38. axb4 {[%clk 0:00:15]}  Kc7 {[%clk 0:00:04]} 39. Kc3 {[%clk 0:00:14]}  Kd6 {[%clk 0:00:04]} 40. f3 {[%clk 0:00:10]}  Ke6 {[%clk 0:00:03]} 41. f4 {[%clk 0:00:05]}  Nc8 {[%clk 0:00:02]} 42. Bg6 {[%clk 0:00:02]}  Nd6 {[%clk 0:00:01]} 43. Kd3 {[%clk 0:00:03]}  Kf6 {[%clk 0:00:01]} 44. Bxh5 {[%clk 0:00:03]}  Nf5 {[%clk 0:00:01]} 45. Bxg4 {[%clk 0:00:04]}  Nxg3 {[%clk 0:00:01]} 46. Bf3 {[%clk 0:00:04]}  Kf5 {[%clk 0:00:01]} 47. fxe5 {[%clk 0:00:04]}  Kxe5 {[%clk 0:00:02]} 48. Bc6 {[%clk 0:00:04]}  Nf5 {[%clk 0:00:01]} 49. Bxb5 {[%clk 0:00:04]}  Nh4 {[%clk 0:00:01]} 50. Bc6 {[%clk 0:00:05]} 1-0


[Site "https://www.chess.com"]

[Event "Titled Tuesday Blitz February 01 A 2022"]
[White "Postny, Evgeny"]
[Black "Sasikiran, Krishnan"]
[WhiteFideId "2804344"]
[BlackFideId "5004985"]
[WhiteElo "2483"]
[BlackElo "2572"]
[Result "0-1"]
[Round "10"]
[TimeControl "180+1"]
[Date "2022.02.01"]
[WhiteClock "0:00:02"]
[BlackClock "0:00:11"]

1. d4 {[%clk 0:03:00]}  Nf6 {[%clk 0:02:59]} 2. Nf3 {[%clk 0:03:00]}  e6 {[%clk 0:02:57]} 3. Bg5 {[%clk 0:03:00]}  h6 {[%clk 0:02:55]} 4. Bxf6 {[%clk 0:03:00]}  Qxf6 {[%clk 0:02:54]} 5. e4 {[%clk 0:03:00]}  d6 {[%clk 0:02:54]} 6. Bd3 {[%clk 0:02:57]}  Nd7 {[%clk 0:02:50]} 7. O-O {[%clk 0:02:55]}  e5 {[%clk 0:02:48]} 8. c3 {[%clk 0:02:55]}  g6 {[%clk 0:02:47]} 9. Nbd2 {[%clk 0:02:51]}  Bg7 {[%clk 0:02:47]} 10. Re1 {[%clk 0:02:51]}  O-O {[%clk 0:02:46]} 11. a4 {[%clk 0:02:50]}  a5 {[%clk 0:02:40]} 12. Qc2 {[%clk 0:02:48]}  Qe7 {[%clk 0:02:39]} 13. Nc4 {[%clk 0:02:46]}  Re8 {[%clk 0:02:29]} 14. Rad1 {[%clk 0:02:44]}  Nf8 {[%clk 0:02:26]} 15. h3 {[%clk 0:02:41]}  Bd7 {[%clk 0:02:21]} 16. Bf1 {[%clk 0:02:36]}  b6 {[%clk 0:02:17]} 17. dxe5 {[%clk 0:02:31]}  dxe5 {[%clk 0:02:17]} 18. Ncxe5 {[%clk 0:02:23]}  Bxe5 {[%clk 0:02:15]} 19. Nxe5 {[%clk 0:02:23]}  Qxe5 {[%clk 0:02:15]} 20. Rd4 {[%clk 0:02:13]}  Bc6 {[%clk 0:02:12]} 21. Qd2 {[%clk 0:02:03]}  g5 {[%clk 0:02:01]} 22. Bc4 {[%clk 0:01:57]}  Ne6 {[%clk 0:02:00]} 23. Bxe6 {[%clk 0:01:54]}  Qxe6 {[%clk 0:02:00]} 24. f4 {[%clk 0:01:50]}  Qe7 {[%clk 0:01:44]} 25. e5 {[%clk 0:01:40]}  Rad8 {[%clk 0:01:35]} 26. f5 {[%clk 0:01:40]}  f6 {[%clk 0:01:21]} 27. e6 {[%clk 0:01:25]}  Qc5 {[%clk 0:01:20]} 28. Qf2 {[%clk 0:01:20]}  Rd5 {[%clk 0:01:13]} 29. g4 {[%clk 0:01:11]}  Kf8 {[%clk 0:01:08]} 30. Red1 {[%clk 0:01:03]}  Red8 {[%clk 0:01:07]} 31. h4 {[%clk 0:00:41]}  Rxd4 {[%clk 0:01:04]} 32. cxd4 {[%clk 0:00:39]}  Qd5 {[%clk 0:01:04]} 33. Kh2 {[%clk 0:00:39]}  Ke7 {[%clk 0:01:00]} 34. Rc1 {[%clk 0:00:33]}  Qd6+ {[%clk 0:00:58]} 35. Kh3 {[%clk 0:00:30]}  Bxa4 {[%clk 0:00:51]} 36. d5 {[%clk 0:00:27]}  Bb3 {[%clk 0:00:44]} 37. Rc6 {[%clk 0:00:27]}  Qe5 {[%clk 0:00:41]} 38. Qg3 {[%clk 0:00:21]}  Qxg3+ {[%clk 0:00:32]} 39. Kxg3 {[%clk 0:00:22]}  Bxd5 {[%clk 0:00:32]} 40. Rxc7+ {[%clk 0:00:22]}  Kd6 {[%clk 0:00:32]} 41. Rh7 {[%clk 0:00:19]}  Bxe6 {[%clk 0:00:27]} 42. fxe6 {[%clk 0:00:17]}  Kxe6 {[%clk 0:00:27]} 43. Rxh6 {[%clk 0:00:16]}  Rd3+ {[%clk 0:00:27]} 44. Kf2 {[%clk 0:00:16]}  gxh4 {[%clk 0:00:26]} 45. g5 {[%clk 0:00:14]}  Rb3 {[%clk 0:00:26]} 46. Rxf6+ {[%clk 0:00:13]}  Ke5 {[%clk 0:00:26]} 47. Kg2 {[%clk 0:00:11]}  b5 {[%clk 0:00:24]} 48. Kh2 {[%clk 0:00:07]}  a4 {[%clk 0:00:22]} 49. Rf2 {[%clk 0:00:03]}  Rg3 {[%clk 0:00:20]} 50. Re2+ {[%clk 0:00:02]}  Kd5 {[%clk 0:00:19]} 51. Rd2+ {[%clk 0:00:02]}  Kc5 {[%clk 0:00:19]} 52. Rg2 {[%clk 0:00:01]}  Kd6 {[%clk 0:00:13]} 53. Rxg3 {[%clk 0:00:01]}  hxg3+ {[%clk 0:00:12]} 54. Kxg3 {[%clk 0:00:02]}  b4 {[%clk 0:00:13]} 55. Kf4 {[%clk 0:00:02]}  a3 {[%clk 0:00:13]} 56. g6 {[%clk 0:00:02]}  Ke7 {[%clk 0:00:11]} 57. bxa3 {[%clk 0:00:02]}  bxa3 {[%clk 0:00:11]} 0-1


[Site "https://www.chess.com"]

[Event "Titled Tuesday Blitz February 01 A 2022"]
[White "Sadhwani, Raunak"]
[Black "Vokhidov, Shamsiddin"]
[WhiteFideId "35093487"]
[BlackFideId "14204223"]
[WhiteElo "2616"]
[BlackElo "2611"]
[Result "0-1"]
[Round "10"]
[TimeControl "180+1"]
[Date "2022.02.01"]
[WhiteClock "0:00:13"]
[BlackClock "0:01:13"]

1. d4 {[%clk 0:03:00]}  Nf6 {[%clk 0:02:58]} 2. Nf3 {[%clk 0:03:01]}  d5 {[%clk 0:02:57]} 3. Bf4 {[%clk 0:02:58]}  c5 {[%clk 0:02:57]} 4. e3 {[%clk 0:02:59]}  Nc6 {[%clk 0:02:58]} 5. Nbd2 {[%clk 0:02:59]}  Nh5 {[%clk 0:02:56]} 6. Be5 {[%clk 0:02:55]}  f6 {[%clk 0:02:54]} 7. Bg3 {[%clk 0:02:49]}  e6 {[%clk 0:02:55]} 8. c3 {[%clk 0:02:46]}  g6 {[%clk 0:02:50]} 9. Be2 {[%clk 0:02:39]}  cxd4 {[%clk 0:02:49]} 10. cxd4 {[%clk 0:02:39]}  Be7 {[%clk 0:02:32]} 11. O-O {[%clk 0:02:38]}  O-O {[%clk 0:02:32]} 12. Rc1 {[%clk 0:02:38]}  Bd7 {[%clk 0:02:28]} 13. a3 {[%clk 0:02:30]}  Nxg3 {[%clk 0:02:27]} 14. hxg3 {[%clk 0:02:30]}  Rc8 {[%clk 0:02:25]} 15. b4 {[%clk 0:02:29]}  a5 {[%clk 0:02:23]} 16. b5 {[%clk 0:02:29]}  Na7 {[%clk 0:02:23]} 17. a4 {[%clk 0:02:27]}  Rxc1 {[%clk 0:02:23]} 18. Qxc1 {[%clk 0:02:28]}  Nc8 {[%clk 0:02:24]} 19. Nb3 {[%clk 0:02:12]}  Nb6 {[%clk 0:02:16]} 20. Nc5 {[%clk 0:02:12]}  Qc7 {[%clk 0:02:01]} 21. Qc2 {[%clk 0:01:54]}  Rc8 {[%clk 0:01:55]} 22. Rc1 {[%clk 0:01:55]}  Be8 {[%clk 0:01:43]} 23. Qd2 {[%clk 0:01:47]}  Nxa4 {[%clk 0:01:39]} 24. Nb3 {[%clk 0:01:13]}  Nc3 {[%clk 0:01:39]} 25. Bf1 {[%clk 0:01:05]}  a4 {[%clk 0:01:29]} 26. Nc5 {[%clk 0:00:59]}  Ne4 {[%clk 0:01:27]} 27. Qb4 {[%clk 0:00:55]}  b6 {[%clk 0:01:22]} 28. Nxe6 {[%clk 0:00:42]}  Bxb4 {[%clk 0:01:15]} 29. Rxc7 {[%clk 0:00:29]}  Rxc7 {[%clk 0:01:14]} 30. Nxc7 {[%clk 0:00:30]}  a3 {[%clk 0:01:12]} 31. Nxd5 {[%clk 0:00:13]}  a2 {[%clk 0:01:13]} 32. Nxb4 {[%clk 0:00:13]}  a1=Q {[%clk 0:01:13]} 0-1


[Site "https://www.chess.com"]

[Event "Titled Tuesday Blitz February 01 A 2022"]
[White "Santos Ruiz, Miguel"]
[Black "Salinas Herrera, Pablo"]
[WhiteFideId "22291482"]
[BlackFideId "3407128"]
[WhiteElo "2486"]
[BlackElo "2541"]
[Result "1-0"]
[Round "10"]
[TimeControl "180+1"]
[Date "2022.02.01"]
[WhiteClock "0:00:06"]
[BlackClock "0:00:02"]

1. e4 {[%clk 0:03:00]}  e5 {[%clk 0:03:00]} 2. Nf3 {[%clk 0:03:00]}  Nc6 {[%clk 0:03:00]} 3. Bc4 {[%clk 0:03:01]}  Bc5 {[%clk 0:03:00]} 4. d3 {[%clk 0:03:00]}  Nf6 {[%clk 0:03:01]} 5. Nc3 {[%clk 0:03:00]}  O-O {[%clk 0:03:00]} 6. a3 {[%clk 0:02:58]}  a6 {[%clk 0:02:57]} 7. h3 {[%clk 0:02:58]}  Nd4 {[%clk 0:02:41]} 8. Nxd4 {[%clk 0:02:40]}  Bxd4 {[%clk 0:02:39]} 9. Qf3 {[%clk 0:02:34]}  c6 {[%clk 0:02:39]} 10. Bd2 {[%clk 0:02:25]}  d6 {[%clk 0:02:34]} 11. O-O {[%clk 0:02:08]}  Be6 {[%clk 0:02:32]} 12. Bxe6 {[%clk 0:02:08]}  fxe6 {[%clk 0:02:32]} 13. g3 {[%clk 0:01:59]}  Qe8 {[%clk 0:02:20]} 14. Qg2 {[%clk 0:01:43]}  Qg6 {[%clk 0:02:13]} 15. Rab1 {[%clk 0:01:29]}  Rf7 {[%clk 0:02:10]} 16. Ne2 {[%clk 0:01:29]}  Ba7 {[%clk 0:02:09]} 17. Kh2 {[%clk 0:01:27]}  d5 {[%clk 0:01:54]} 18. f4 {[%clk 0:01:17]}  Raf8 {[%clk 0:01:34]} 19. f5 {[%clk 0:00:57]}  exf5 {[%clk 0:01:34]} 20. exf5 {[%clk 0:00:57]}  Qh5 {[%clk 0:01:34]} 21. g4 {[%clk 0:00:55]}  Qh4 {[%clk 0:01:34]} 22. Qg3 {[%clk 0:00:47]}  Qxg3+ {[%clk 0:01:30]} 23. Nxg3 {[%clk 0:00:48]}  h6 {[%clk 0:01:28]} 24. Rbe1 {[%clk 0:00:47]}  Re8 {[%clk 0:01:27]} 25. Re2 {[%clk 0:00:42]}  Rfe7 {[%clk 0:01:27]} 26. Kg2 {[%clk 0:00:42]}  Kf7 {[%clk 0:01:27]} 27. Rfe1 {[%clk 0:00:42]}  Bb8 {[%clk 0:01:27]} 28. Bb4 {[%clk 0:00:38]}  Rd7 {[%clk 0:01:27]} 29. Kf3 {[%clk 0:00:38]}  e4+ {[%clk 0:01:24]} 30. dxe4 {[%clk 0:00:38]}  Bxg3 {[%clk 0:01:25]} 31. Kxg3 {[%clk 0:00:39]}  Nxe4+ {[%clk 0:01:22]} 32. Kg2 {[%clk 0:00:39]}  b5 {[%clk 0:01:10]} 33. Bd2 {[%clk 0:00:36]}  Rde7 {[%clk 0:01:07]} 34. Bf4 {[%clk 0:00:33]}  c5 {[%clk 0:01:05]} 35. Kf3 {[%clk 0:00:28]}  g5 {[%clk 0:00:45]} 36. Bc1 {[%clk 0:00:18]}  Re5 {[%clk 0:00:27]} 37. b3 {[%clk 0:00:17]}  a5 {[%clk 0:00:23]} 38. c4 {[%clk 0:00:17]}  bxc4 {[%clk 0:00:04]} 39. bxc4 {[%clk 0:00:17]}  R5e7 {[%clk 0:00:04]} 40. cxd5 {[%clk 0:00:16]}  Nf6 {[%clk 0:00:05]} 41. d6 {[%clk 0:00:10]}  Rxe2 {[%clk 0:00:04]} 42. Rxe2 {[%clk 0:00:11]}  Rxe2 {[%clk 0:00:05]} 43. Kxe2 {[%clk 0:00:11]}  Ke8 {[%clk 0:00:04]} 44. Bb2 {[%clk 0:00:11]}  Ne4 {[%clk 0:00:04]} 45. Bg7 {[%clk 0:00:11]}  Nxd6 {[%clk 0:00:04]} 46. Bxh6 {[%clk 0:00:11]}  Ne4 {[%clk 0:00:04]} 47. Ke3 {[%clk 0:00:10]}  Nc3 {[%clk 0:00:02]} 48. Bxg5 {[%clk 0:00:10]}  Nb5 {[%clk 0:00:02]} 49. h4 {[%clk 0:00:08]}  Nxa3 {[%clk 0:00:03]} 50. h5 {[%clk 0:00:09]}  Nc4+ {[%clk 0:00:03]} 51. Ke4 {[%clk 0:00:08]}  Kf7 {[%clk 0:00:03]} 52. h6 {[%clk 0:00:06]}  a4 {[%clk 0:00:03]} 53. Bc1 {[%clk 0:00:06]}  a3 {[%clk 0:00:01]} 54. Bxa3 {[%clk 0:00:03]}  Nxa3 {[%clk 0:00:02]} 55. g5 {[%clk 0:00:03]}  Nc4 {[%clk 0:00:03]} 56. g6+ {[%clk 0:00:04]}  Kf6 {[%clk 0:00:03]} 57. h7 {[%clk 0:00:04]}  Kg7 {[%clk 0:00:02]} 58. f6+ {[%clk 0:00:04]}  Kh8 {[%clk 0:00:02]} 59. f7 {[%clk 0:00:05]}  Nd6+ {[%clk 0:00:02]} 60. Kd5 {[%clk 0:00:05]}  Nxf7 {[%clk 0:00:01]} 61. gxf7 {[%clk 0:00:05]}  Kg7 {[%clk 0:00:02]} 62. f8=Q+ {[%clk 0:00:05]}  Kxf8 {[%clk 0:00:02]} 63. h8=Q+ {[%clk 0:00:06]} 1-0


[Site "https://www.chess.com"]

[Event "Titled Tuesday Blitz February 01 A 2022"]
[White "Shirov, Alexei"]
[Black "Weetik, Vjacheslav"]
[WhiteFideId "2209390"]
[BlackFideId "4153472"]
[WhiteElo "2645"]
[BlackElo "2469"]
[Result "1-0"]
[Round "10"]
[TimeControl "180+1"]
[Date "2022.02.01"]
[WhiteClock "0:00:38"]
[BlackClock "0:00:15"]

1. e4 {[%clk 0:03:00]}  c6 {[%clk 0:03:00]} 2. Nf3 {[%clk 0:02:56]}  d5 {[%clk 0:03:00]} 3. d3 {[%clk 0:02:56]}  Bg4 {[%clk 0:02:59]} 4. h3 {[%clk 0:02:54]}  Bh5 {[%clk 0:02:59]} 5. Nc3 {[%clk 0:02:45]}  e6 {[%clk 0:02:59]} 6. g4 {[%clk 0:02:43]}  Bg6 {[%clk 0:02:58]} 7. Qe2 {[%clk 0:02:43]}  d4 {[%clk 0:02:29]} 8. Nd1 {[%clk 0:02:37]}  e5 {[%clk 0:02:29]} 9. c3 {[%clk 0:02:31]}  dxc3 {[%clk 0:02:17]} 10. bxc3 {[%clk 0:02:27]}  Nd7 {[%clk 0:02:17]} 11. Ne3 {[%clk 0:02:20]}  Ngf6 {[%clk 0:02:10]} 12. h4 {[%clk 0:02:13]}  h6 {[%clk 0:02:07]} 13. Bh3 {[%clk 0:02:10]}  Qc7 {[%clk 0:02:02]} 14. g5 {[%clk 0:02:04]}  Nh5 {[%clk 0:01:59]} 15. Nc4 {[%clk 0:02:01]}  f6 {[%clk 0:01:41]} 16. gxh6 {[%clk 0:01:44]}  gxh6 {[%clk 0:01:33]} 17. Rg1 {[%clk 0:01:28]}  Bf7 {[%clk 0:01:33]} 18. Be3 {[%clk 0:01:27]}  O-O-O {[%clk 0:01:26]} 19. Nfd2 {[%clk 0:01:25]}  b5 {[%clk 0:01:19]} 20. Nb2 {[%clk 0:01:24]}  Kb8 {[%clk 0:01:05]} 21. a4 {[%clk 0:01:23]}  b4 {[%clk 0:01:05]} 22. cxb4 {[%clk 0:01:15]}  Bxb4 {[%clk 0:01:04]} 23. Kf1 {[%clk 0:01:13]}  a5 {[%clk 0:00:57]} 24. Nf3 {[%clk 0:01:09]}  Nc5 {[%clk 0:00:55]} 25. d4 {[%clk 0:01:03]}  Nxe4 {[%clk 0:00:52]} 26. dxe5 {[%clk 0:01:01]}  fxe5 {[%clk 0:00:50]} 27. Nc4 {[%clk 0:01:00]}  Bd5 {[%clk 0:00:45]} 28. Nfxe5 {[%clk 0:00:59]}  Nhf6 {[%clk 0:00:38]} 29. Bb6 {[%clk 0:00:58]}  Qe7 {[%clk 0:00:34]} 30. Bxd8 {[%clk 0:00:56]}  Rxd8 {[%clk 0:00:35]} 31. Qe3 {[%clk 0:00:54]}  Bc5 {[%clk 0:00:31]} 32. Rb1+ {[%clk 0:00:50]}  Ka8 {[%clk 0:00:28]} 33. Nb6+ {[%clk 0:00:49]}  Ka7 {[%clk 0:00:24]} 34. Nxd5 {[%clk 0:00:40]}  Rxd5 {[%clk 0:00:19]} 35. Nxc6+ {[%clk 0:00:39]}  Ka6 {[%clk 0:00:15]} 36. Qe2+ {[%clk 0:00:38]} 1-0


[Site "https://www.chess.com"]

[Event "Titled Tuesday Blitz February 01 A 2022"]
[White "Shyaamnikhil P"]
[Black "Iskusnyh, Sergei"]
[WhiteFideId "5024218"]
[BlackFideId "4120027"]
[WhiteElo "2292"]
[BlackElo "2492"]
[Result "0-1"]
[Round "10"]
[TimeControl "180+1"]
[Date "2022.02.01"]
[WhiteClock "0:00:03"]
[BlackClock "0:00:13"]

1. d4 {[%clk 0:03:00]}  d5 {[%clk 0:02:59]} 2. Nf3 {[%clk 0:03:00]}  Nf6 {[%clk 0:02:58]} 3. e3 {[%clk 0:03:01]}  c5 {[%clk 0:02:57]} 4. c4 {[%clk 0:03:00]}  cxd4 {[%clk 0:02:56]} 5. exd4 {[%clk 0:03:00]}  g6 {[%clk 0:02:56]} 6. Nc3 {[%clk 0:02:58]}  Bg7 {[%clk 0:02:56]} 7. Qb3 {[%clk 0:02:57]}  O-O {[%clk 0:02:42]} 8. cxd5 {[%clk 0:02:52]}  Nbd7 {[%clk 0:02:40]} 9. a4 {[%clk 0:02:30]}  Nb6 {[%clk 0:02:40]} 10. a5 {[%clk 0:02:30]}  Nbxd5 {[%clk 0:02:39]} 11. Bc4 {[%clk 0:02:30]}  Nxc3 {[%clk 0:01:52]} 12. bxc3 {[%clk 0:02:28]}  Ne4 {[%clk 0:01:53]} 13. a6 {[%clk 0:02:08]}  Nd6 {[%clk 0:01:43]} 14. Bd5 {[%clk 0:02:06]}  Rb8 {[%clk 0:01:38]} 15. Bf4 {[%clk 0:02:04]}  Qc7 {[%clk 0:01:33]} 16. axb7 {[%clk 0:01:55]}  Bxb7 {[%clk 0:01:32]} 17. O-O {[%clk 0:00:54]}  Ba8 {[%clk 0:01:29]} 18. Qa2 {[%clk 0:00:52]}  Qxc3 {[%clk 0:01:24]} 19. Rfc1 {[%clk 0:00:36]}  Qd3 {[%clk 0:01:02]} 20. Bxa8 {[%clk 0:00:33]}  Rxa8 {[%clk 0:01:01]} 21. Rc7 {[%clk 0:00:33]}  Nf5 {[%clk 0:00:57]} 22. Be5 {[%clk 0:00:22]}  Bxe5 {[%clk 0:00:53]} 23. dxe5 {[%clk 0:00:22]}  a5 {[%clk 0:00:52]} 24. h3 {[%clk 0:00:20]}  a4 {[%clk 0:00:52]} 25. Qa3 {[%clk 0:00:20]}  Qxa3 {[%clk 0:00:50]} 26. Rxa3 {[%clk 0:00:21]}  Rfb8 {[%clk 0:00:50]} 27. g4 {[%clk 0:00:21]}  Ng7 {[%clk 0:00:37]} 28. Nd4 {[%clk 0:00:19]}  Rb4 {[%clk 0:00:33]} 29. Nc6 {[%clk 0:00:19]}  Rb3 {[%clk 0:00:34]} 30. Rxb3 {[%clk 0:00:19]}  axb3 {[%clk 0:00:33]} 31. Rb7 {[%clk 0:00:19]}  Ne6 {[%clk 0:00:26]} 32. Rxb3 {[%clk 0:00:19]}  Kf8 {[%clk 0:00:25]} 33. Kg2 {[%clk 0:00:16]}  Nf4+ {[%clk 0:00:24]} 34. Kg3 {[%clk 0:00:16]}  g5 {[%clk 0:00:24]} 35. h4 {[%clk 0:00:16]}  h6 {[%clk 0:00:24]} 36. hxg5 {[%clk 0:00:16]}  hxg5 {[%clk 0:00:25]} 37. Nd4 {[%clk 0:00:15]}  e6 {[%clk 0:00:24]} 38. Nf3 {[%clk 0:00:15]}  Ne2+ {[%clk 0:00:20]} 39. Kh2 {[%clk 0:00:14]}  Ra2 {[%clk 0:00:19]} 40. Nxg5 {[%clk 0:00:14]}  Nd4 {[%clk 0:00:19]} 41. Rb8+ {[%clk 0:00:14]}  Kg7 {[%clk 0:00:18]} 42. Kg3 {[%clk 0:00:14]}  Ra3+ {[%clk 0:00:18]} 43. f3 {[%clk 0:00:13]}  Rc3 {[%clk 0:00:17]} 44. Rb7 {[%clk 0:00:12]}  Kg6 {[%clk 0:00:16]} 45. Nxf7 {[%clk 0:00:11]}  Rxf3+ {[%clk 0:00:16]} 46. Kh4 {[%clk 0:00:11]}  Rxf7 {[%clk 0:00:16]} 47. Rb4 {[%clk 0:00:11]}  Nf3+ {[%clk 0:00:16]} 48. Kg3 {[%clk 0:00:11]}  Nxe5 {[%clk 0:00:16]} 49. Re4 {[%clk 0:00:11]}  Kf6 {[%clk 0:00:14]} 50. g5+ {[%clk 0:00:06]}  Kf5 {[%clk 0:00:14]} 51. Rh4 {[%clk 0:00:04]}  Ng6 {[%clk 0:00:13]} 52. Rg4 {[%clk 0:00:03]}  Ra7 {[%clk 0:00:13]} 0-1


[Site "https://www.chess.com"]